Cogmind - Beta 14 @@@ ROGUE MODE // 2024.10.25 @ 17:13:29 Player: toydarian Result: Destroyed by G-34 Mercenary with Small Laser Performance ------------- Evolutions (0) 0 Regions Visited (1) 200 Robots Destroyed (13) 65 Value Destroyed (273) 273 Prototype IDs (2) 40 Alien Tech Used (0) 0 Bonus (0) 0 TOTAL SCORE: 578 Bonus ------- None Cogmind --------- Core Integrity 0/250 Matter 280/300 Energy 75/250 System Corruption 1% Temperature Cool (6) Movement Core (350) Ox6 Location -10/Materials Parts ------- > --- POWER (1) -------- Ion Engine > --- PROPULSION (2) --- (None) > --- UTILITY (2) ------ Medium Storage Unit > --- WEAPON (2) ------- EM Pulse Gun Hammer > --- INVENTORY (10) --- Light Treads Wheel Targeting Computer Peak State ------------ > --- POWER ------------ Ion Engine > --- PROPULSION ------- Light Treads Light Treads > --- UTILITY ---------- Medium Storage Unit Signal Interpreter > --- WEAPON ----------- Assault Rifle Light Assault Rifle > --- INVENTORY -------- Ion Engine Aluminum Leg Aluminum Leg Wheel Wheel Small Storage Unit Targeting Computer EM Pulse Gun EM Pulse Gun Hammer [Rating: 8] Favorites ----------- Power Ion Engine Engine Ion Engine Propulsion Light Treads Treads Light Treads Leg Aluminum Leg Wheel Wheel Utility Medium Storage Unit Storage Medium Storage Unit Processor Signal Interpreter Protection Light Armor Plating Weapon Assault Rifle Energy Gun EM Pulse Gun Ballistic Gun Assault Rifle Impact Weapon Hammer Build | -11 -10 ------- Run | Yrd Mat Slots Evolved . | . . Power . | . . Propulsion . | . . Utility . | . . Weapon . | . . Parts Attached 17 | 6 11 Power 2 | 1 1 Engine 2 | 1 1 Core . | . . Reactor . | . . Propulsion 5 | 2 3 Treads 2 | 2 . Leg 2 | . 2 Wheel 1 | . 1 Hover . | . . Flight . | . . Utility 4 | 1 3 Device . | . . Storage 2 | 1 1 Processor 1 | . 1 Hackware . | . . Protection 1 | . 1 Artifact . | . . Weapon 6 | 2 4 Energy Gun 2 | 1 1 Energy Cannon . | . . Ballistic Gun 3 | 1 2 Ballistic Cannon . | . . Launcher . | . . Special Weapon . | . . Impact Weapon 1 | . 1 Slashing Weapon . | . . Piercing Weapon . | . . Special Melee Weapon . | . . Unidentified Prototypes . | . . Parts Lost 7 | . 7 Power 1 | . 1 Propulsion 3 | . 3 Utility 1 | . 1 Weapon 2 | . 2 Highest Loss Streak 7 | . 7 To Critical Strikes . | . . Average Slot Usage (%) 95 | . 95 Engine 13 | . 13 Treads 22 | . 22 Leg 4 | . 4 Storage 20 | . 20 Processor 5 | . 5 Energy Gun 9 | . 9 Ballistic Gun 13 | . 13 Impact Weapon 4 | . 4 Peak Build Rating 8 | 6 8 Average Rating 6 | 4 6 On Entrance 3 | . 6 Naked Turns . | . . Heaviest Build 24 | 14 24 Greatest Support 40 | 40 40 Greatest Overweight (x) 1 | . 1 Average Overweight (x) . | . . Largest Inventory Capacity 10 | 8 10 Average Capacity 9 | 7 9 Most Carried 10 | 7 10 Average Carried 7 | 4 8 Final Capacity 10 | 8 10 Final Carried 6 | 6 3 Class Distribution -------------------- 100% | Mutant Dominant Class ---------------- Mutant | -10/Materials Resources | -11 -10 ----------- Run | Yrd Mat Matter Collected 431 | 217 214 Remotely . | . . Salvage Created 384 | . 384 Parts 28 | . 28 Haulers Intercepted . | . . Recyclers Shooed . | . . Parts Field Recycled . | . . Retrieved Matter . | . . Parts Self-Destructed . | . . Prevented . | . . Kills | -11 -10 ------- Run | Yrd Mat Combat Hostiles Destroyed 11 | . 11 Melee 1 | . 1 Guns 9 | . 9 AOE 1 | . 1 Classes Destroyed 4 | . 4 Worker 1 | . 1 Watcher 1 | . 1 Swarmer 6 | . 6 Grunt 5 | . 5 Best Kill Streak 3 | . 3 Combat Bots Only 3 | . 3 Max Kills in Single Turn 1 | . 1 Gunslinging . | . . Exploded 1 | . 1 Melee 1 | . 1 Uniques/NPCs Destroyed . | . . Combat | -11 -10 -------- Run | Yrd Mat Hostile Shots Fired 102 | . 102 Missed 23 | . 23 Damage Taken 959 | . 959 Core 254 | . 254 Absorbed by Shields . | . . Core Remaining (%) 100 | 100 . Volleys Fired 38 | . 38 Largest 2 | . 2 Hottest 60 | . 60 Shots Fired 53 | . 53 Gun 53 | . 53 Cannon . | . . Launcher . | . . Special . | . . Kinetic 38 | . 38 Thermal . | . . Explosive . | . . Electromagnetic 15 | . 15 Robot Hit Streak 14 | . 14 Robot Miss Streak 3 | . 3 Penetration Max . | . . Secondary Targets . | . . Shots Hit Robots 41 | . 41 Core Hits 18 | . 18 Critical Kills . | . . Critical Parts Destroyed . | . . Critical Strikes . | . . Melee Attacks 13 | . 13 Impact 13 | . 13 Slashing . | . . Piercing . | . . Sneak Attacks . | . . Combat Hostiles . | . . Follow-up Attacks . | . . Damage Inflicted 696 | . 696 Guns 439 | . 439 Cannons . | . . Explosions 41 | . 41 Melee 216 | . 216 Ramming . | . . Kinetic 310 | . 310 Thermal 41 | . 41 Explosive . | . . Electromagnetic 129 | . 129 Impact 216 | . 216 Slashing . | . . Piercing . | . . Highest Corruption 1 | . 1 Average Corruption 1 | . 1 Corruption Purged . | . . Corruption Blocked . | . . Effects 4 | . 4 Message Errors 3 | . 3 Energy Discharges 1 | . 1 Overload Shots . | . . Overflow Damage 3 | . 3 Projectiles . | . . Explosions . | . . Melee 3 | . 3 Knockbacks . | . . Impact . | . . Kinetic . | . . Secondary . | . . Self-Inflicted Damage . | . . Shots . | . . Rammed . | . . Targets Rammed . | . . Kicked . | . . Crushed . | . . Highest Temperature 13 | . 13 Average Temperature 6 | . 6 Received Heat Transfer 489 | . 489 Siege Activations . | . . Robots Corrupted . | . . Combat Hostiles . | . . Parts Fried . | . . Impact Corruptions 1 | . 1 Robots Melted . | . . Combat Hostiles . | . . Parts Melted . | . . Heat Transferred 50 | . 50 Parts Sabotaged . | . . Parts Stolen . | . . Parts Stripped . | . . Power Chain Reactions 1 | . 1 Alert | -11 -10 ------- Run | Yrd Mat Peak Influence 220 | . 220 Initial . | . . Average 70 | . 78 Maximum Alert Level 1 | . 1 Low Security (%) 91 | 100 90 Level 1 8 | . 9 Level 2 . | . . Level 3 . | . . Level 4 . | . . Level 5 . | . . High Security . | . . Max Security . | . . Squads Dispatched 1 | . 1 Investigation 1 | . 1 Extermination . | . . Reinforcement . | . . Assault . | . . Garrison . | . . Intercept . | . . Searches Triggered . | . . Construction Impeded . | . . Haulers Reinforced . | . . Active Scanning Responses . | . . Cargo Convoy Interrupts . | . . Stealth | -11 -10 --------- Run | Yrd Mat Distress Signals 1 | . 1 Communications Jammed . | . . Distress Signals . | . . Times Spotted 18 | . 18 Peak Tracking Total 5 | . 5 Tactical Retreats 3 | . 3 Traps | -11 -10 ------- Run | Yrd Mat Traps Triggered 2 | . 2 Indirectly . | . . Trap Hack Attempts . | . . Triggered . | . . Disarmed . | . . Reprogrammed . | . . Reused . | . . Traps Extracted . | . . Installed . | . . Triggered . | . . Machines | -11 -10 ---------- Run | Yrd Mat Machines Disabled . | . . Max in Single Turn . | . . Machines Repaired . | . . Machines Dismantled . | . . Machines Sabotaged . | . . Overloaded Fab Kills . | . . Hacking | -11 -10 --------- Run | Yrd Mat Machines Accessed 3 | . 3 Terminals 3 | . 3 Fabricators . | . . Repair Stations . | . . Recycling Units . | . . Scanalyzers . | . . Garrison Access . | . . Total Hacks 8 | . 8 Successful 1 | . 1 Failed 7 | . 7 Catastrophic 2 | . 2 Database Lockouts . | . . Manual 2 | . 2 Terminals 8 | . 8 Fabricators . | . . Repair Stations . | . . Recycling Units . | . . Scanalyzers . | . . Garrison Access . | . . Terminal Hacks 1 | . 1 Prototype ID Bank 1 | . 1 Fabricator Hacks . | . . Repair Station Hacks . | . . Recycling Unit Hacks . | . . Scanalyzer . | . . Garrison Access Hacks . | . . Unauthorized Hacks . | . . Terminals . | . . Fabricators . | . . Repair Stations . | . . Recycling Units . | . . Scanalyzers . | . . Garrison Access . | . . Data Cores Recovered . | . . Used . | . . Hacking Detections 3 | . 3 Full Trace Events 1 | . 1 Feedback Events . | . . Feedback Blocked . | . . Robot Schematics Acquired . | . . Robots Built . | . . Authchips . | . . Time . | . . Total Robot Build Rating . | . . Part Schematics Acquired . | . . Parts Built . | . . Authchips . | . . Time . | . . Total Part Build Rating . | . . Parts Repaired . | . . Time . | . . Parts Recycled . | . . Recycled Matter . | . . Retrieved Matter . | . . Retrieved Components . | . . Parts Scanalyzed . | . . Part Schematics Acquired . | . . Parts Damaged . | . . Bothacking | -11 -10 ------------ Run | Yrd Mat Used RIF Installer . | . . Robots Hacked . | . . Non-combat . | . . Combat . | . . Robot Hacks Applied . | . . Relay Couplers Released . | . . Fabnet Peak Effective % . | . . Robots Rewired . | . . Allies Hacked . | . . Hacks Repelled . | . . Allies | -11 -10 -------- Run | Yrd Mat Total Allies . | . . Largest Group . | . . Highest-Rated Group . | . . Highest-Rated Ally . | . . Total Orders . | . . Ally Attacks . | . . Total Damage . | . . Kills . | . . Allies Corrupted . | . . Allies Melted . | . . Intel | -11 -10 ------- Run | Yrd Mat Robot Analysis Total . | . . Derelict Logs Recovered . | . . Drone Launches . | . . Drone Recoveries . | . . Exploration | -11 -10 ------------- Run | Yrd Mat Turns Passed 861 | 85 776 Spaces Moved 441 | 46 395 Core 7 | 7 . Treads 370 | 39 331 Legs 63 | . 63 Wheels 1 | . 1 Hover . | . . Flight . | . . Fastest Speed 50 | 50 95 Average Speed 152 | 143 153 Slowest Speed 160 | 160 160 Overloaded Moves . | . . Propulsion Burnouts . | . . Robots Hopped . | . . Cave-ins Triggered . | . . Exploration Rate (%) 30 | 4 57 Regions Visited 1 Branch Regions . Pre-discovered Areas . | . . Known Exits Taken . | . . Unknown Exits Taken 1 | 1 . Scrap Searched . | . . Spaces Dug 1 | . 1 Terrain Destroyed 4 | . 4 Melee 1 | . 1 Projectile . | . . AOE 3 | . 3 Terrain Rammed . | . . Walls Destroyed . | . . Machines Disabled . | . . Actions | -11 -10 --------- Run | Yrd Mat Total 553 | 65 488 Wait 25 | 2 23 Move 440 | 45 395 Hop . | . . Pick Up 18 | 12 6 Fast Attach . | . . Attach 12 | 6 6 Detach . | . . Swap 5 | . 5 Drop 2 | . 2 Fire 38 | . 38 Melee 13 | . 13 Ram . | . . Kick . | . . Crush . | . . Escape Stasis . | . . Rewire . | . . Trap . | . . Miscellaneous . | . . Route ------- -11/Scrapyard -10/Materials (discovered 3 exits: *Mat x2 / [*Min]) History --------- Turn | Location | Event 16 | -11/Scrapyard | Discovered new exit (range 16) 86 | -11/Scrapyard | Entered Materials 312 | -10/Materials | Build established: Mutant 461 | -10/Materials | Discovered new exit (range 4) 549 | -10/Materials | Identified exit to Materials 712 | -10/Materials | Discovered exit to Materials (range 10) 788 | -10/Materials | Discovered new exit (range 6) 819 | -10/Materials | Core integrity fell below 50% 845 | -10/Materials | Core integrity fell below 20% 862 | -10/Materials | Destroyed by G-34 Mercenary with Small Laser Last Messages --------------- 00829_ Ion Engine destroyed. 00830_ Aluminum Leg destroyed. 00831_ Critical hit (Burn: +37). 00831_ Discarded Signal Interpreter. 00838_ G-47 Trooper destroyed. 00838_ K-01 Serf collects debris. 00838_ Lgt. Assault Rifle destroyed. 00839_ Acquired 38 matter. 00840_ Wheel destroyed. 00842_ Critical hit (Burn: +37). 00849_ G-47 Trooper destroyed. 00849_ K-01 Serf collects debris. 00852_ Destroyed Heat Sink. 00852_ G-34 Mercenary system corrupted by crushing effect. 00852_ R-06 Scavenger collects Particle Gun. 00854_ K-01 Serf collects debris. 00856_ R-06 Scavenger collects Lgt. Nuclear Core. 00858_ K-01 Serf collects debris. 00858_ T-07 Excavator is excavating. 00858_ Lgt. Armor Plating destroyed. Map ----- +----------------------------------------------------+ | # # + ## # #% # | | ########## ## ## # += + | | ?????????# ## ## # " ########### | | ?????????# ## ## # # | | ?????????# ####### ############## | | ?????????# #?????#+####????????????##+############ | | ???????###+###+###?????????????????? ??????????? | | ???????# % =%= #?????????????????? ??????????? | | ???????# """[ #??##?????????????"" ""?????????? | | ???????# """"" #?? #?????????????"" ""?????????? | | ???????# """"" #? +????????????""" """????????? | | ???????# """"" #? #????????????""" """????????? | | ???????# """ #? #??????????????" "??????????? | | ???????# # #?????????????? ??????????? | | ???????# # #??????????????###??????????? | | ???????#####+##### #???????????????????????????? | | ??????????# #????????????#######????????? | | ??????????# u #????????????""""""#????????? | | ??????????# || #???????????" |"! "#????????? | | ??????????# |[ ############" "## ???? | | ??????????# | ??? | | ??????????# < ??? | | ??????##### | | ??????# ######### ####/## #???????## | | ??????# < #???# # # % ## #??######????????? | | ??????# #???# t k@##= #????????????????? | | ?########## #???# # r g/! #????????????????? | | ?# # #???????# k ## #????????????????? | | ?# """# #???????# r ## #????????????????? | | ?# T"# ######### r ## =||#????????????????? | | ?# """# ## =||#????????????????? | | ?# + T# =||#????????????????? | | ?# """ # ## #????????????????? | | ?# """ ############# #######????????????????? | | ?# ! """ #???????????# #??????????????????????? | | ?# #???????????# #??????????????????????? | | ?##########???????????# #??????????????????????? | | ?????????????????????? ??????????????????????? | | ?????????????????????? ?????????????????????? | | ??????????????????????#######????????????????????? | | ?????????????????????????????????????????????????? | | ?????????????????????????????????????????????????? | | ?????????????????????????????????????????????????? | | ?????????????????????????????????????????????????? | | ?????????????????????????????????????????????????? | | ?????????????????????????????????????????????????? | | ?????????????????????????????????????????????????? | | ?????????????????????????????????????????????????? | | ?????????????????????????????????????????????????? | | ?????????????????????????????????????????????????? | +----------------------------------------------------+ Best States ------------- Heat Dissipation 25 Energy Generation 10 Energy Capacity 250 Matter Stores 300 Matter Capacity 300 Sight Range 16 Terrain Scan Density 10 Armor Coverage 150 Evasion (%) 55 Recoil Reduction 2 Item Schematics ----------------- None Robot Schematics ------------------ None Fabricated ------------ Nothing Alien Tech Used ----------------- None Achievements -------------- None Challenges ------------ None Game ------ Seed LightpackLightWings Manual? 0 Play Time 00:13:49 Cumulative 24.6 hours Start 2024.10.25 @ 16:57:52 End 2024.10.25 @ 17:13:29 Sessions 1 Manual Loads 0 Difficulty Rogue Special Mode None Game No. 26 Rogue 19 Adventurer 0 Explorer 7 Win Type - Total 1 Types 1/0/0/0/0/0/0/0/0 Lore% 11 Gallery% 18 Achievement% 24 Wizard Run 0 Options --------- Layout 0 ASCII 0 Keyboard 0 Movement Mouse Keybinds 0 Fullscreen 1 Font 24/Terminus Map View 76x50 Zoom Use 0% Tactical HUD 1 Map Filters NONE Filters NONE Steam 1 RUN: 283d9c08-eede-4287-b6a2-8fe337de60e3